[Event "Titled Tuesday Blitz August 15 Late 2023"]
[White "Garmendiarov"]
[Black "Graif, William"]
[BlackFideId "2609835"]
[WhiteElo "2303"]
[BlackElo "2575"]
[Result "0-1"]
[Round "1"]
[TimeControl "180+1"]
[Date "2023.08.15"]
[WhiteClock "0:00:03"]
[BlackClock "0:00:09"]
[Board "127"]

1. e4 {[%clk 0:03:00]}  e5 {[%clk 0:02:53]} 2. Nf3 {[%clk 0:03:00]}  Bc5 {[%clk 0:02:52]} 3. Bc4 {[%clk 0:02:49]}  Nf6 {[%clk 0:02:51]} 4. d3 {[%clk 0:02:49]}  Nc6 {[%clk 0:02:49]} 5. c3 {[%clk 0:02:47]}  d6 {[%clk 0:02:49]} 6. h3 {[%clk 0:02:45]}  h6 {[%clk 0:02:43]} 7. a4 {[%clk 0:02:43]}  a6 {[%clk 0:02:39]} 8. b4 {[%clk 0:02:43]}  Ba7 {[%clk 0:02:38]} 9. Be3 {[%clk 0:02:39]}  Bxe3 {[%clk 0:02:34]} 10. fxe3 {[%clk 0:02:40]}  O-O {[%clk 0:02:30]} 11. O-O {[%clk 0:02:40]}  d5 {[%clk 0:02:22]} 12. exd5 {[%clk 0:02:34]}  Nxd5 {[%clk 0:02:22]} 13. Qe2 {[%clk 0:02:24]}  Be6 {[%clk 0:02:18]} 14. Bxd5 {[%clk 0:02:11]}  Qxd5 {[%clk 0:02:06]} 15. e4 {[%clk 0:02:04]}  Qd6 {[%clk 0:01:49]} 16. Na3 {[%clk 0:02:03]}  Rfd8 {[%clk 0:01:37]} 17. Rad1 {[%clk 0:02:00]}  Bb3 {[%clk 0:01:24]} 18. Nc4 {[%clk 0:02:00]}  Bxd1 {[%clk 0:01:19]} 19. Rxd1 {[%clk 0:01:55]}  Qe6 {[%clk 0:00:59]} 20. a5 {[%clk 0:01:53]}  Rd7 {[%clk 0:00:41]} 21. Ne3 {[%clk 0:01:53]}  Ne7 {[%clk 0:00:40]} 22. Nc4 {[%clk 0:01:36]}  Ng6 {[%clk 0:00:34]} 23. Kh2 {[%clk 0:01:15]}  Rad8 {[%clk 0:00:33]} 24. g3 {[%clk 0:01:04]}  Kh7 {[%clk 0:00:25]} 25. Ne3 {[%clk 0:01:02]}  Ne7 {[%clk 0:00:23]} 26. Nh4 {[%clk 0:00:55]}  g6 {[%clk 0:00:21]} 27. Nf3 {[%clk 0:00:47]}  b6 {[%clk 0:00:18]} 28. Nc4 {[%clk 0:00:44]}  Rxd3 {[%clk 0:00:12]} 29. Rxd3 {[%clk 0:00:40]}  Qxc4 {[%clk 0:00:12]} 30. Re3 {[%clk 0:00:39]}  Qxe2+ {[%clk 0:00:11]} 31. Rxe2 {[%clk 0:00:40]}  bxa5 {[%clk 0:00:11]} 32. bxa5 {[%clk 0:00:37]}  Nc6 {[%clk 0:00:11]} 33. Kg2 {[%clk 0:00:22]}  Rd3 {[%clk 0:00:11]} 34. Rd2 {[%clk 0:00:15]}  Rxd2+ {[%clk 0:00:11]} 35. Nxd2 {[%clk 0:00:16]}  Nxa5 {[%clk 0:00:11]} 36. Kf3 {[%clk 0:00:16]}  f5 {[%clk 0:00:09]} 37. Ke3 {[%clk 0:00:16]}  Kg7 {[%clk 0:00:09]} 38. Kd3 {[%clk 0:00:15]}  Kf6 {[%clk 0:00:10]} 39. c4 {[%clk 0:00:13]}  f4 {[%clk 0:00:08]} 40. gxf4 {[%clk 0:00:14]}  exf4 {[%clk 0:00:08]} 41. Nf3 {[%clk 0:00:14]}  g5 {[%clk 0:00:09]} 42. Kd4 {[%clk 0:00:14]}  h5 {[%clk 0:00:09]} 43. Kd5 {[%clk 0:00:13]}  g4 {[%clk 0:00:09]} 44. hxg4 {[%clk 0:00:13]}  hxg4 {[%clk 0:00:10]} 45. e5+ {[%clk 0:00:14]}  Ke7 {[%clk 0:00:10]} 46. Nd4 {[%clk 0:00:13]}  f3 {[%clk 0:00:09]} 47. Nf5+ {[%clk 0:00:10]}  Ke8 {[%clk 0:00:09]} 48. Ne3 {[%clk 0:00:10]}  g3 {[%clk 0:00:09]} 49. Ke4 {[%clk 0:00:09]}  g2 {[%clk 0:00:09]} 50. Kf5 {[%clk 0:00:08]}  g1=Q {[%clk 0:00:09]} 51. Nd5 {[%clk 0:00:08]}  f2 {[%clk 0:00:09]} 52. Nf6+ {[%clk 0:00:08]}  Kd8 {[%clk 0:00:08]} 53. e6 {[%clk 0:00:08]}  f1=Q+ {[%clk 0:00:09]} 54. Ke5 {[%clk 0:00:08]}  Qg5+ {[%clk 0:00:09]} 55. Kd4 {[%clk 0:00:07]}  Qfxf6+ {[%clk 0:00:09]} 56. Kd3 {[%clk 0:00:05]}  Qg3+ {[%clk 0:00:10]} 57. Kc2 {[%clk 0:00:03]}  Qff2+ {[%clk 0:00:09]} 0-1


[Site "https://www.chess.com"]

[Event "Titled Tuesday Blitz August 15 Late 2023"]
[White "Dr_Pepper18"]
[Black "Ilkhomi, Jaloliddin"]
[BlackFideId "14700948"]
[WhiteElo "2297"]
[BlackElo "2572"]
[Result "1-0"]
[Round "1"]
[TimeControl "180+1"]
[Date "2023.08.15"]
[WhiteClock "0:00:21"]
[BlackClock "0:00:11"]
[Board "129"]

1. d4 {[%clk 0:03:00]}  Nf6 {[%clk 0:02:59]} 2. c4 {[%clk 0:03:00]}  e6 {[%clk 0:03:00]} 3. Nc3 {[%clk 0:03:00]}  Bb4 {[%clk 0:03:00]} 4. e3 {[%clk 0:03:00]}  O-O {[%clk 0:03:00]} 5. Bd2 {[%clk 0:03:00]}  b6 {[%clk 0:03:00]} 6. Nf3 {[%clk 0:03:00]}  d5 {[%clk 0:02:58]} 7. cxd5 {[%clk 0:02:59]}  exd5 {[%clk 0:02:59]} 8. Bd3 {[%clk 0:03:00]}  Ba6 {[%clk 0:02:59]} 9. Bxa6 {[%clk 0:02:59]}  Nxa6 {[%clk 0:03:00]} 10. O-O {[%clk 0:02:58]}  Qc8 {[%clk 0:02:59]} 11. Rc1 {[%clk 0:02:57]}  Qb7 {[%clk 0:02:59]} 12. Qa4 {[%clk 0:02:49]}  Rac8 {[%clk 0:02:56]} 13. Nb5 {[%clk 0:02:35]}  Bxd2 {[%clk 0:02:48]} 14. Nxd2 {[%clk 0:02:35]}  Rfd8 {[%clk 0:02:41]} 15. b4 {[%clk 0:02:30]}  c6 {[%clk 0:02:40]} 16. Nc3 {[%clk 0:02:26]}  Nc7 {[%clk 0:02:39]} 17. Qb3 {[%clk 0:02:24]}  Ne6 {[%clk 0:02:36]} 18. Rc2 {[%clk 0:02:18]}  h5 {[%clk 0:02:35]} 19. Nf3 {[%clk 0:02:11]}  Ne4 {[%clk 0:02:26]} 20. Rfc1 {[%clk 0:01:59]}  N6g5 {[%clk 0:02:17]} 21. Nxe4 {[%clk 0:01:49]}  Nxf3+ {[%clk 0:02:15]} 22. gxf3 {[%clk 0:01:48]}  dxe4 {[%clk 0:02:12]} 23. fxe4 {[%clk 0:01:46]}  c5 {[%clk 0:02:12]} 24. d5 {[%clk 0:01:42]}  Rd6 {[%clk 0:02:11]} 25. bxc5 {[%clk 0:01:40]}  Rg6+ {[%clk 0:02:08]} 26. Kf1 {[%clk 0:01:38]}  Qd7 {[%clk 0:02:00]} 27. c6 {[%clk 0:01:29]}  Qh3+ {[%clk 0:01:57]} 28. Ke2 {[%clk 0:01:29]}  Rf6 {[%clk 0:01:55]} 29. Kd3 {[%clk 0:01:21]}  Rd6 {[%clk 0:01:27]} 30. c7 {[%clk 0:01:18]}  Qd7 {[%clk 0:01:22]} 31. a4 {[%clk 0:01:15]}  f5 {[%clk 0:01:21]} 32. f3 {[%clk 0:01:15]}  fxe4+ {[%clk 0:01:19]} 33. fxe4 {[%clk 0:01:16]}  a6 {[%clk 0:01:17]} 34. Rc6 {[%clk 0:01:10]}  Rxc6 {[%clk 0:01:11]} 35. Rxc6 {[%clk 0:01:11]}  Rxc7 {[%clk 0:01:11]} 36. Qxb6 {[%clk 0:01:11]}  Rb7 {[%clk 0:01:08]} 37. Qc5 {[%clk 0:00:31]}  Rb3+ {[%clk 0:01:07]} 38. Kc4 {[%clk 0:00:28]}  Rb1 {[%clk 0:01:04]} 39. Qd6 {[%clk 0:00:25]}  Qb7 {[%clk 0:00:48]} 40. Qe6+ {[%clk 0:00:20]}  Kh8 {[%clk 0:00:23]} 41. Qe8+ {[%clk 0:00:17]}  Kh7 {[%clk 0:00:20]} 42. Qxh5+ {[%clk 0:00:17]}  Kg8 {[%clk 0:00:18]} 43. Qe8+ {[%clk 0:00:18]}  Kh7 {[%clk 0:00:18]} 44. Qh5+ {[%clk 0:00:17]}  Kg8 {[%clk 0:00:17]} 45. Qe8+ {[%clk 0:00:15]}  Kh7 {[%clk 0:00:17]} 46. Qg6+ {[%clk 0:00:15]}  Kg8 {[%clk 0:00:12]} 47. Qe6+ {[%clk 0:00:15]}  Kh7 {[%clk 0:00:10]} 48. Qh3+ {[%clk 0:00:15]}  Kg8 {[%clk 0:00:08]} 49. Rc8+ {[%clk 0:00:15]}  Qxc8+ {[%clk 0:00:04]} 50. Qxc8+ {[%clk 0:00:16]}  Kh7 {[%clk 0:00:04]} 51. Qf5+ {[%clk 0:00:16]}  g6 {[%clk 0:00:03]} 52. Qf7+ {[%clk 0:00:16]}  Kh6 {[%clk 0:00:04]} 53. e5 {[%clk 0:00:17]}  a5 {[%clk 0:00:05]} 54. e6 {[%clk 0:00:17]}  g5 {[%clk 0:00:05]} 55. e7 {[%clk 0:00:17]}  Rb4+ {[%clk 0:00:06]} 56. Kd3 {[%clk 0:00:17]}  Rb8 {[%clk 0:00:06]} 57. e8=Q {[%clk 0:00:17]}  Rxe8 {[%clk 0:00:07]} 58. Qxe8 {[%clk 0:00:18]}  g4 {[%clk 0:00:07]} 59. Qf7 {[%clk 0:00:18]}  g3 {[%clk 0:00:08]} 60. hxg3 {[%clk 0:00:18]}  Kg5 {[%clk 0:00:08]} 61. Qf4+ {[%clk 0:00:19]}  Kh5 {[%clk 0:00:09]} 62. g4+ {[%clk 0:00:18]}  Kg6 {[%clk 0:00:09]} 63. Qf5+ {[%clk 0:00:18]}  Kg7 {[%clk 0:00:10]} 64. Qg5+ {[%clk 0:00:19]}  Kf7 {[%clk 0:00:10]} 65. Qe5 {[%clk 0:00:18]}  Kf8 {[%clk 0:00:09]} 66. Qe6 {[%clk 0:00:19]}  Kg7 {[%clk 0:00:09]} 67. d6 {[%clk 0:00:19]}  Kh7 {[%clk 0:00:10]} 68. Qf6 {[%clk 0:00:19]}  Kg8 {[%clk 0:00:10]} 69. Qe7 {[%clk 0:00:20]}  Kh8 {[%clk 0:00:10]} 70. d7 {[%clk 0:00:21]}  Kg8 {[%clk 0:00:11]} 71. d8=Q# {[%clk 0:00:21]} 1-0


[Site "https://www.chess.com"]

[Event "Titled Tuesday Blitz August 15 Late 2023"]
[White "Shapiro, Viktor"]
[Black "Bullen, Alex"]
[WhiteFideId "4175700"]
[BlackFideId "1801627"]
[WhiteElo "2565"]
[BlackElo "2289"]
[Result "0-1"]
[Round "1"]
[TimeControl "180+1"]
[Date "2023.08.15"]
[WhiteClock "0:00:08"]
[BlackClock "0:00:13"]
[Board "132"]

1. c4 {[%clk 0:03:00]}  e6 {[%clk 0:02:58]} 2. Nc3 {[%clk 0:03:01]}  d5 {[%clk 0:02:59]} 3. d4 {[%clk 0:03:01]}  h6 {[%clk 0:02:58]} 4. Nf3 {[%clk 0:03:01]}  Nf6 {[%clk 0:02:58]} 5. h3 {[%clk 0:02:56]}  Bd6 {[%clk 0:02:58]} 6. c5 {[%clk 0:02:55]}  Be7 {[%clk 0:02:57]} 7. Bf4 {[%clk 0:02:55]}  c6 {[%clk 0:02:55]} 8. e3 {[%clk 0:02:55]}  b6 {[%clk 0:02:55]} 9. b4 {[%clk 0:02:54]}  bxc5 {[%clk 0:02:41]} 10. bxc5 {[%clk 0:02:51]}  Qa5 {[%clk 0:02:39]} 11. Qd2 {[%clk 0:02:50]}  Ba6 {[%clk 0:02:34]} 12. Rb1 {[%clk 0:02:35]}  Bxf1 {[%clk 0:02:28]} 13. Kxf1 {[%clk 0:02:35]}  O-O {[%clk 0:02:26]} 14. g4 {[%clk 0:02:35]}  Nbd7 {[%clk 0:01:48]} 15. Nxd5 {[%clk 0:02:30]}  Qa6+ {[%clk 0:01:48]} 16. Kg2 {[%clk 0:02:24]}  exd5 {[%clk 0:01:43]} 17. Qc2 {[%clk 0:02:11]}  Ne4 {[%clk 0:01:41]} 18. h4 {[%clk 0:02:06]}  Ndf6 {[%clk 0:01:35]} 19. Ne5 {[%clk 0:02:02]}  Qc8 {[%clk 0:01:22]} 20. f3 {[%clk 0:02:02]}  Nxg4 {[%clk 0:01:04]} 21. Nxg4 {[%clk 0:01:57]}  Nf6 {[%clk 0:01:00]} 22. Ne5 {[%clk 0:01:46]}  Nd7 {[%clk 0:00:57]} 23. Qf5 {[%clk 0:01:39]}  Nxe5 {[%clk 0:00:51]} 24. Qxc8 {[%clk 0:01:38]}  Rfxc8 {[%clk 0:00:41]} 25. Bxe5 {[%clk 0:01:37]}  Re8 {[%clk 0:00:37]} 26. Bg3 {[%clk 0:01:07]}  Bf6 {[%clk 0:00:34]} 27. Rb3 {[%clk 0:01:06]}  a5 {[%clk 0:00:32]} 28. a4 {[%clk 0:01:02]}  Re6 {[%clk 0:00:30]} 29. h5 {[%clk 0:00:55]}  Rae8 {[%clk 0:00:30]} 30. Re1 {[%clk 0:00:48]}  Bxd4 {[%clk 0:00:29]} 31. exd4 {[%clk 0:00:40]}  Rxe1 {[%clk 0:00:29]} 32. Bxe1 {[%clk 0:00:41]}  Rxe1 {[%clk 0:00:30]} 33. Rb6 {[%clk 0:00:41]}  Rd1 {[%clk 0:00:21]} 34. Rxc6 {[%clk 0:00:41]}  Rxd4 {[%clk 0:00:21]} 35. Rc8+ {[%clk 0:00:39]}  Kh7 {[%clk 0:00:21]} 36. c6 {[%clk 0:00:40]}  Rxa4 {[%clk 0:00:20]} 37. c7 {[%clk 0:00:37]}  Rc4 {[%clk 0:00:20]} 38. Kf2 {[%clk 0:00:37]}  a4 {[%clk 0:00:21]} 39. Ke2 {[%clk 0:00:37]}  a3 {[%clk 0:00:21]} 40. Ra8 {[%clk 0:00:33]}  Rxc7 {[%clk 0:00:20]} 41. Rxa3 {[%clk 0:00:33]}  g6 {[%clk 0:00:21]} 42. Ra5 {[%clk 0:00:31]}  Rd7 {[%clk 0:00:20]} 43. Ra6 {[%clk 0:00:27]}  gxh5 {[%clk 0:00:20]} 44. Kd3 {[%clk 0:00:25]}  Kg7 {[%clk 0:00:20]} 45. Kd4 {[%clk 0:00:25]}  f6 {[%clk 0:00:21]} 46. Ra1 {[%clk 0:00:17]}  Kg6 {[%clk 0:00:21]} 47. Rh1 {[%clk 0:00:16]}  Kg5 {[%clk 0:00:21]} 48. Rg1+ {[%clk 0:00:14]}  Kf4 {[%clk 0:00:21]} 49. Rg6 {[%clk 0:00:14]}  f5 {[%clk 0:00:19]} 50. Rxh6 {[%clk 0:00:14]}  Kxf3 {[%clk 0:00:19]} 51. Rxh5 {[%clk 0:00:15]}  f4 {[%clk 0:00:19]} 52. Rg5 {[%clk 0:00:14]}  Kf2 {[%clk 0:00:19]} 53. Rf5 {[%clk 0:00:14]}  f3 {[%clk 0:00:19]} 54. Kd3 {[%clk 0:00:15]}  d4 {[%clk 0:00:18]} 55. Rf4 {[%clk 0:00:15]}  Kg2 {[%clk 0:00:16]} 56. Rg4+ {[%clk 0:00:15]}  Kf1 {[%clk 0:00:16]} 57. Rf4 {[%clk 0:00:15]}  f2 {[%clk 0:00:17]} 58. Rf8 {[%clk 0:00:14]}  Rd5 {[%clk 0:00:14]} 59. Rf7 {[%clk 0:00:12]}  Rg5 {[%clk 0:00:13]} 60. Kxd4 {[%clk 0:00:13]}  Kg1 {[%clk 0:00:13]} 61. Ke3 {[%clk 0:00:09]}  f1=Q {[%clk 0:00:12]} 62. Rxf1+ {[%clk 0:00:08]}  Kxf1 {[%clk 0:00:13]} 0-1


[Site "https://www.chess.com"]

[Event "Titled Tuesday Blitz August 15 Late 2023"]
[White "Sariego Figueredo, Wilfredo"]
[Black "Kochiev, Ivan"]
[WhiteFideId "3500080"]
[BlackFideId "2917890"]
[WhiteElo "2287"]
[BlackElo "2564"]
[Result "0-1"]
[Round "1"]
[TimeControl "180+1"]
[Date "2023.08.15"]
[WhiteClock "0:01:12"]
[BlackClock "0:00:28"]
[Board "133"]

1. d4 {[%clk 0:02:59]}  Nf6 {[%clk 0:02:59]} 2. Bf4 {[%clk 0:02:59]}  e6 {[%clk 0:03:00]} 3. e3 {[%clk 0:02:59]}  c5 {[%clk 0:03:00]} 4. c3 {[%clk 0:02:59]}  d5 {[%clk 0:03:00]} 5. Bd3 {[%clk 0:02:59]}  Bd6 {[%clk 0:03:01]} 6. Bg3 {[%clk 0:02:59]}  Qc7 {[%clk 0:03:01]} 7. Nf3 {[%clk 0:03:00]}  Nbd7 {[%clk 0:03:02]} 8. Nbd2 {[%clk 0:02:59]}  O-O {[%clk 0:03:02]} 9. O-O {[%clk 0:02:58]}  Bxg3 {[%clk 0:03:02]} 10. hxg3 {[%clk 0:02:59]}  e5 {[%clk 0:03:03]} 11. dxe5 {[%clk 0:02:59]}  Nxe5 {[%clk 0:03:03]} 12. Nxe5 {[%clk 0:03:00]}  Qxe5 {[%clk 0:03:04]} 13. Nf3 {[%clk 0:03:00]}  Qe6 {[%clk 0:03:05]} 14. c4 {[%clk 0:03:00]}  dxc4 {[%clk 0:03:01]} 15. Be2 {[%clk 0:03:01]}  b6 {[%clk 0:02:52]} 16. Qc2 {[%clk 0:03:00]}  Bb7 {[%clk 0:02:52]} 17. Bxc4 {[%clk 0:02:58]}  Qg4 {[%clk 0:02:49]} 18. Be2 {[%clk 0:02:48]}  Rad8 {[%clk 0:02:34]} 19. Rfd1 {[%clk 0:02:47]}  Qh5 {[%clk 0:02:19]} 20. Rxd8 {[%clk 0:02:32]}  Rxd8 {[%clk 0:02:20]} 21. Rd1 {[%clk 0:02:32]}  Re8 {[%clk 0:02:18]} 22. Rd6 {[%clk 0:02:29]}  Ng4 {[%clk 0:02:05]} 23. Nh4 {[%clk 0:02:22]}  Qe5 {[%clk 0:01:37]} 24. Rd7 {[%clk 0:02:05]}  Be4 {[%clk 0:01:29]} 25. Qb3 {[%clk 0:01:45]}  Nh6 {[%clk 0:00:51]} 26. Bc4 {[%clk 0:01:38]}  Qf6 {[%clk 0:00:39]} 27. Bd5 {[%clk 0:01:21]}  Bxd5 {[%clk 0:00:35]} 28. Qxd5 {[%clk 0:01:21]}  Qxb2 {[%clk 0:00:31]} 29. Rxa7 {[%clk 0:01:14]}  Qc1+ {[%clk 0:00:26]} 30. Kh2 {[%clk 0:01:13]}  Ng4+ {[%clk 0:00:26]} 31. Kh3 {[%clk 0:01:13]}  Nxf2+ {[%clk 0:00:27]} 32. Kh2 {[%clk 0:01:12]}  Qh1# {[%clk 0:00:28]} 0-1


[Site "https://www.chess.com"]

[Event "Titled Tuesday Blitz August 15 Late 2023"]
[White "Rodriguez Santiago, Jaime"]
[Black "Gasparyan, David"]
[WhiteFideId "3100898"]
[BlackFideId "13311980"]
[WhiteElo "2280"]
[BlackElo "2563"]
[Result "0-1"]
[Round "1"]
[TimeControl "180+1"]
[Date "2023.08.15"]
[WhiteClock "0:00:18"]
[BlackClock "0:00:51"]
[Board "135"]

1. d4 {[%clk 0:03:00]}  Nf6 {[%clk 0:02:59]} 2. c4 {[%clk 0:03:01]}  e6 {[%clk 0:02:59]} 3. Nc3 {[%clk 0:03:00]}  d5 {[%clk 0:02:58]} 4. cxd5 {[%clk 0:02:59]}  exd5 {[%clk 0:02:57]} 5. Bg5 {[%clk 0:02:59]}  Be7 {[%clk 0:02:55]} 6. e3 {[%clk 0:02:59]}  h6 {[%clk 0:02:53]} 7. Bh4 {[%clk 0:02:52]}  c6 {[%clk 0:02:54]} 8. Bd3 {[%clk 0:02:50]}  O-O {[%clk 0:02:51]} 9. Nge2 {[%clk 0:02:49]}  Bg4 {[%clk 0:02:50]} 10. f3 {[%clk 0:02:47]}  Be6 {[%clk 0:02:49]} 11. Qc2 {[%clk 0:02:44]}  Nbd7 {[%clk 0:02:40]} 12. O-O {[%clk 0:02:41]}  Rc8 {[%clk 0:02:35]} 13. e4 {[%clk 0:02:31]}  dxe4 {[%clk 0:02:25]} 14. fxe4 {[%clk 0:02:28]}  Ng4 {[%clk 0:02:21]} 15. Bxe7 {[%clk 0:02:25]}  Qxe7 {[%clk 0:02:22]} 16. Qd2 {[%clk 0:02:18]}  Rfd8 {[%clk 0:02:03]} 17. h3 {[%clk 0:02:13]}  Ngf6 {[%clk 0:02:01]} 18. Qf4 {[%clk 0:02:08]}  Nf8 {[%clk 0:01:57]} 19. Rae1 {[%clk 0:02:04]}  Ng6 {[%clk 0:01:56]} 20. Qf2 {[%clk 0:02:01]}  Qc7 {[%clk 0:01:37]} 21. e5 {[%clk 0:01:54]}  Nd5 {[%clk 0:01:33]} 22. Bxg6 {[%clk 0:01:53]}  fxg6 {[%clk 0:01:33]} 23. Ne4 {[%clk 0:01:43]}  Rf8 {[%clk 0:01:27]} 24. Qg3 {[%clk 0:01:41]}  g5 {[%clk 0:01:21]} 25. N2c3 {[%clk 0:01:23]}  Nf4 {[%clk 0:01:13]} 26. Nd6 {[%clk 0:01:19]}  Rcd8 {[%clk 0:01:09]} 27. Nce4 {[%clk 0:01:19]}  Qb6 {[%clk 0:00:59]} 28. Nc5 {[%clk 0:01:05]}  Bd5 {[%clk 0:00:58]} 29. Rf2 {[%clk 0:00:59]}  Qb4 {[%clk 0:00:55]} 30. Rd1 {[%clk 0:00:50]}  b6 {[%clk 0:00:51]} 31. Nce4 {[%clk 0:00:45]}  Bxe4 {[%clk 0:00:50]} 32. Nxe4 {[%clk 0:00:43]}  Rxd4 {[%clk 0:00:51]} 33. Rxd4 {[%clk 0:00:38]}  Qxd4 {[%clk 0:00:52]} 34. Nd6 {[%clk 0:00:18]}  Ne2+ {[%clk 0:00:51]} 0-1


[Site "https://www.chess.com"]

[Event "Titled Tuesday Blitz August 15 Late 2023"]
[White "Kaminski, Victor"]
[Black "Schekachikhin, Maksim"]
[WhiteFideId "1131630"]
[BlackFideId "24177830"]
[WhiteElo "2269"]
[BlackElo "2562"]
[Result "0-1"]
[Round "1"]
[TimeControl "180+1"]
[Date "2023.08.15"]
[WhiteClock "0:00:00"]
[BlackClock "0:00:44"]
[Board "137"]

1. e4 {[%clk 0:02:57]}  c5 {[%clk 0:02:57]} 2. Nf3 {[%clk 0:02:56]}  a6 {[%clk 0:02:55]} 3. c4 {[%clk 0:02:54]}  Nc6 {[%clk 0:02:54]} 4. Nc3 {[%clk 0:02:52]}  Nd4 {[%clk 0:02:53]} 5. Nxd4 {[%clk 0:02:44]}  cxd4 {[%clk 0:02:54]} 6. Ne2 {[%clk 0:02:44]}  e5 {[%clk 0:02:53]} 7. Ng3 {[%clk 0:02:43]}  Ne7 {[%clk 0:02:52]} 8. Be2 {[%clk 0:02:39]}  g6 {[%clk 0:02:48]} 9. O-O {[%clk 0:02:36]}  Bg7 {[%clk 0:02:48]} 10. d3 {[%clk 0:02:34]}  O-O {[%clk 0:02:48]} 11. f4 {[%clk 0:02:34]}  d6 {[%clk 0:02:42]} 12. f5 {[%clk 0:02:33]}  f6 {[%clk 0:02:40]} 13. fxg6 {[%clk 0:02:22]}  hxg6 {[%clk 0:02:39]} 14. Bg4 {[%clk 0:02:21]}  Bxg4 {[%clk 0:02:33]} 15. Qxg4 {[%clk 0:02:22]}  Qc8 {[%clk 0:02:34]} 16. Qh4 {[%clk 0:02:14]}  b5 {[%clk 0:02:28]} 17. b3 {[%clk 0:02:09]}  Qe6 {[%clk 0:02:23]} 18. Bd2 {[%clk 0:01:59]}  bxc4 {[%clk 0:02:19]} 19. bxc4 {[%clk 0:01:59]}  Rab8 {[%clk 0:02:18]} 20. Rab1 {[%clk 0:01:59]}  Qd7 {[%clk 0:01:53]} 21. Rb3 {[%clk 0:01:29]}  Qa4 {[%clk 0:01:51]} 22. Rxb8 {[%clk 0:00:56]}  Rxb8 {[%clk 0:01:52]} 23. Qg4 {[%clk 0:00:54]}  Qc2 {[%clk 0:01:29]} 24. Qe6+ {[%clk 0:00:50]}  Kf8 {[%clk 0:01:29]} 25. Bg5 {[%clk 0:00:24]}  Rb1 {[%clk 0:01:24]} 26. Bxf6 {[%clk 0:00:18]}  Bxf6 {[%clk 0:01:23]} 27. Qxf6+ {[%clk 0:00:17]}  Ke8 {[%clk 0:01:24]} 28. Qxd6 {[%clk 0:00:10]}  Qxd3 {[%clk 0:01:19]} 29. Qxe5 {[%clk 0:00:03]}  Qe3+ {[%clk 0:01:10]} 30. Kh1 {[%clk 0:00:04]}  Rxf1+ {[%clk 0:01:10]} 31. Nxf1 {[%clk 0:00:04]}  Qe2 {[%clk 0:01:11]} 32. Qf6 {[%clk 0:00:04]}  d3 {[%clk 0:01:11]} 33. e5 {[%clk 0:00:03]}  d2 {[%clk 0:00:48]} 34. e6 {[%clk 0:00:03]}  d1=Q {[%clk 0:00:47]} 35. Qf7+ {[%clk 0:00:04]}  Kd8 {[%clk 0:00:47]} 36. Qf8+ {[%clk 0:00:04]}  Kc7 {[%clk 0:00:47]} 37. Qxe7+ {[%clk 0:00:05]}  Kc6 {[%clk 0:00:45]} 38. Qe8+ {[%clk 0:00:05]}  Kc5 {[%clk 0:00:45]} 39. Qe7+ {[%clk 0:00:00]}  Kxc4 {[%clk 0:00:44]} 0-1


[Site "https://www.chess.com"]

[Event "Titled Tuesday Blitz August 15 Late 2023"]
[White "maksimys18"]
[Black "Ai, Evan"]
[BlackFideId "2094770"]
[WhiteElo "2561"]
[BlackElo "2265"]
[Result "1-0"]
[Round "1"]
[TimeControl "180+1"]
[Date "2023.08.15"]
[WhiteClock "0:01:32"]
[BlackClock "0:00:09"]
[Board "138"]

1. d4 {[%clk 0:02:59]}  Nf6 {[%clk 0:02:50]} 2. Nf3 {[%clk 0:02:54]}  e6 {[%clk 0:02:49]} 3. c4 {[%clk 0:02:54]}  d5 {[%clk 0:02:49]} 4. Nc3 {[%clk 0:02:54]}  Be7 {[%clk 0:02:43]} 5. Bg5 {[%clk 0:02:54]}  O-O {[%clk 0:02:43]} 6. e3 {[%clk 0:02:53]}  c6 {[%clk 0:02:37]} 7. Rc1 {[%clk 0:02:52]}  Nbd7 {[%clk 0:02:27]} 8. cxd5 {[%clk 0:02:51]}  exd5 {[%clk 0:02:28]} 9. Bd3 {[%clk 0:02:51]}  Re8 {[%clk 0:02:24]} 10. O-O {[%clk 0:02:50]}  h6 {[%clk 0:02:14]} 11. Bf4 {[%clk 0:02:50]}  Nb6 {[%clk 0:02:10]} 12. Ne5 {[%clk 0:02:49]}  Bd6 {[%clk 0:02:03]} 13. Bb1 {[%clk 0:02:47]}  Qe7 {[%clk 0:01:55]} 14. Qc2 {[%clk 0:02:42]}  Nbd7 {[%clk 0:01:44]} 15. Ng4 {[%clk 0:02:24]}  Bxf4 {[%clk 0:01:33]} 16. exf4 {[%clk 0:02:23]}  Ne4 {[%clk 0:01:32]} 17. f3 {[%clk 0:02:18]}  Nef6 {[%clk 0:01:32]} 18. Rce1 {[%clk 0:02:15]}  Qd8 {[%clk 0:01:21]} 19. Ne5 {[%clk 0:02:02]}  c5 {[%clk 0:01:14]} 20. Nxd5 {[%clk 0:01:56]}  g6 {[%clk 0:00:39]} 21. Nxf6+ {[%clk 0:01:49]}  Qxf6 {[%clk 0:00:40]} 22. dxc5 {[%clk 0:01:42]}  Nxe5 {[%clk 0:00:34]} 23. fxe5 {[%clk 0:01:42]}  Rxe5 {[%clk 0:00:35]} 24. Qc3 {[%clk 0:01:39]}  Re6 {[%clk 0:00:20]} 25. Qxf6 {[%clk 0:01:37]}  Rxf6 {[%clk 0:00:21]} 26. Re8+ {[%clk 0:01:37]}  Kg7 {[%clk 0:00:20]} 27. Rd1 {[%clk 0:01:35]}  Re6 {[%clk 0:00:17]} 28. Rdd8 {[%clk 0:01:34]}  Rxe8 {[%clk 0:00:17]} 29. Rxe8 {[%clk 0:01:35]}  Rb8 {[%clk 0:00:15]} 30. b4 {[%clk 0:01:34]}  b6 {[%clk 0:00:14]} 31. c6 {[%clk 0:01:34]}  Ra8 {[%clk 0:00:09]} 32. Be4 {[%clk 0:01:32]} 1-0


[Site "https://www.chess.com"]